Cogmind - Beta 12 @@@ ROGUE MODE // 2023.03.27 @ 22:23:12 Player: Palikka Result: Destroyed by D-53 Grenadier with Mini Grenade Launcher Performance ------------- Evolutions (0) 0 Regions Visited (2) 400 Robots Destroyed (19) 95 Value Destroyed (475) 475 Prototype IDs (0) 0 Alien Tech Used (0) 0 Bonus (0) 0 TOTAL SCORE: 970 Bonus ------- None Cogmind --------- Core Integrity 0/250 Matter 300/300 Energy 100/100 System Corruption 8% Temperature Cool (0) Movement Treading (240) Ox1 Location -10/Mines Parts ------- > --- POWER (1) -------- (None) > --- PROPULSION (2) --- Improved Treads > --- UTILITY (2) ------ High-capacity Storage Unit Utility Shielding > --- WEAPON (2) ------- Light Assault Rifle Light Assault Rifle > --- INVENTORY (20) --- Light Treads Light Treads Light Treads Improved Treads Improved Treads Improved Treads High-capacity Matter Pod (200) Visual Processing Unit Signal Interpreter Improved Targeting Computer Improved Targeting Computer Hardened Light Armor Plating Hardened Light Armor Plating Hardened Light Armor Plating Hardened Light Armor Plating Beam Cannon Beam Cannon Light Assault Rifle Light Assault Rifle Light Assault Rifle Peak State ------------ > --- POWER ------------ Ion Engine > --- PROPULSION ------- Light Treads Improved Treads > --- UTILITY ---------- High-capacity Storage Unit Utility Shielding > --- WEAPON ----------- Light Assault Rifle Light Assault Rifle > --- INVENTORY -------- Light Treads Light Treads Light Treads Improved Treads Improved Treads Improved Treads High-capacity Matter Pod Visual Processing Unit Signal Interpreter Improved Targeting Computer Improved Targeting Computer Hardened Light Armor Plating Hardened Light Armor Plating Hardened Light Armor Plating Hardened Light Armor Plating Beam Cannon Beam Cannon Assault Rifle Light Assault Rifle Light Assault Rifle [Rating: 11] Favorites ----------- Power Ion Engine Engine Ion Engine Propulsion Light Treads Treads Light Treads Utility Utility Shielding Storage High-capacity Storage Unit Protection Utility Shielding Weapon Light Assault Rifle Energy Gun Small Laser Ballistic Gun Light Assault Rifle Build | -11 -10 -10 ------- Run | Jun Mat Min Slots Evolved . | . . . Power . | . . . Propulsion . | . . . Utility . | . . . Weapon . | . . . Parts Attached 17 | 7 9 1 Power 3 | 1 2 . Engine 3 | 1 2 . Core . | . . . Reactor . | . . . Propulsion 4 | 2 2 . Treads 4 | 2 2 . Leg . | . . . Wheel . | . . . Hover . | . . . Flight . | . . . Utility 4 | 1 3 . Device . | . . . Storage 3 | 1 2 . Processor . | . . . Hackware . | . . . Protection 1 | . 1 . Artifact . | . . . Weapon 6 | 3 2 1 Energy Gun 2 | 2 . . Energy Cannon . | . . . Ballistic Gun 4 | 1 2 1 Ballistic Cannon . | . . . Launcher . | . . . Special Weapon . | . . . Impact Weapon . | . . . Slashing Weapon . | . . . Piercing Weapon . | . . . Special Melee Weapon . | . . . Unidentified Prototypes . | . . . Parts Lost 5 | . 3 2 Power 3 | . 2 1 Propulsion 2 | . 1 1 Utility . | . . . Weapon . | . . . Highest Loss Streak 2 | . 1 2 To Critical Strikes . | . . . Average Slot Usage (%) 99 | . 99 99 Engine 13 | . 13 13 Treads 27 | . 27 28 Storage 14 | . 14 14 Protection 13 | . 13 14 Energy Gun 4 | . 5 . Ballistic Gun 23 | . 22 28 Naked Turns . | . . . Heaviest Build 49 | 12 49 48 Greatest Support 43 | 40 43 43 Greatest Overweight (x) 1 | . 1 1 Average Overweight (x) . | . . . Largest Inventory Capacity 20 | 8 20 20 Average Capacity 16 | 7 16 20 Most Carried 20 | 2 20 20 Average Carried 14 | 1 14 19 Final Capacity 20 | 8 20 20 Final Carried 20 | 2 19 20 Class Distribution -------------------- 100% | Mutant Dominant Class ---------------- Mutant | -10/Materials Mutant | -10/Mines Resources | -11 -10 -10 ----------- Run | Jun Mat Min Matter Collected 919 | 153 748 18 Remotely . | . . . Salvage Created 623 | . 573 50 Parts 44 | . 38 6 Haulers Intercepted 1 | . 1 . Recyclers Shooed 1 | . 1 . Parts Field Recycled . | . . . Retrieved Matter . | . . . Parts Self-Destructed . | . . . Prevented . | . . . Kills | -11 -10 -10 ------- Run | Jun Mat Min Combat Hostiles Destroyed 15 | . 12 3 Guns 15 | . 12 3 Classes Destroyed 6 | . 6 . Worker 1 | . 1 . Hauler 1 | . 1 . Operator 1 | . 1 . Watcher 1 | . 1 . Swarmer 4 | . 1 3 Grunt 11 | . 11 . Best Kill Streak 3 | . 2 3 Combat Bots Only 3 | . 2 3 Max Kills in Single Turn 2 | . 1 2 Gunslinging 1 | . . 1 Exploded . | . . . Melee . | . . . Uniques/NPCs Destroyed . | . . . Combat | -11 -10 -10 -------- Run | Jun Mat Min Damage Taken 1252 | . 789 463 Core 256 | . 148 108 Absorbed by Shields . | . . . Redirected to Shielding 10 | . 6 4 Core Remaining (%) 100 | 100 . . Volleys Fired 77 | . 73 4 Largest 2 | . 2 2 Hottest 60 | . 60 40 Shots Fired 153 | . 145 8 Gun 153 | . 145 8 Cannon . | . . . Launcher . | . . . Special . | . . . Kinetic 127 | . 119 8 Thermal 26 | . 26 . Explosive . | . . . Electromagnetic . | . . . Robot Hit Streak 11 | . 11 6 Robot Miss Streak 3 | . 3 1 Penetration Max . | . . . Secondary Targets 3 | . 1 2 Max Gunslinging Chain 1 | . 1 1 Shots Hit Robots 104 | . 97 7 Core Hits 41 | . 36 5 Critical Kills . | . . . Critical Parts Destroyed 2 | . 1 1 Critical Strikes 2 | . 1 1 Destroy 2 | . 1 1 Melee Attacks . | . . . Impact . | . . . Slashing . | . . . Piercing . | . . . Sneak Attacks . | . . . Combat Hostiles . | . . . Follow-up Attacks . | . . . Damage Inflicted 1100 | . 1044 56 Guns 1098 | . 1044 54 Cannons . | . . . Explosions . | . . . Melee . | . . . Ramming 2 | . . 2 Kinetic 915 | . 861 54 Thermal 183 | . 183 . Explosive . | . . . Electromagnetic . | . . . Impact . | . . . Slashing . | . . . Piercing . | . . . Highest Corruption 8 | . 8 8 Average Corruption 7 | . 7 8 Corruption Purged . | . . . Corruption Blocked . | . . . Effects 53 | . 42 11 Message Errors 14 | . 10 4 Matter Fused 8 | . 8 . Heat Flow Errors 6 | . 3 3 Energy Discharges 7 | . 6 1 Data Loss (minor) 7 | . 5 2 Data Loss (major) 3 | . 2 1 Misfires 3 | . 3 . Alerts 1 | . 1 . Weapon Failures 4 | . 4 . Overload Shots . | . . . Overflow Damage . | . . . Projectiles . | . . . Explosions . | . . . Melee . | . . . Knockbacks . | . . . Impact . | . . . Kinetic . | . . . Secondary . | . . . Self-Inflicted Damage . | . . . Shots . | . . . Rammed 1 | . . 1 Targets Rammed 1 | . . 1 Kicked . | . . . Crushed . | . . . Highest Temperature 293 | . 271 293 Average Temperature 58 | . 38 127 Received Heat Transfer 447 | . 420 27 Effects 1 | . . 1 Energy Bleed 1 | . . 1 Siege Activations . | . . . Robots Corrupted . | . . . Combat Hostiles . | . . . Parts Fried . | . . . Impact Corruptions . | . . . Robots Melted . | . . . Combat Hostiles . | . . . Parts Melted . | . . . Heat Transferred 425 | . 425 . Parts Sabotaged . | . . . Parts Stolen . | . . . Parts Stripped . | . . . Power Chain Reactions . | . . . Missiles Intercepted . | . . . Alert | -11 -10 -10 ------- Run | Jun Mat Min Peak Influence 183 | . 183 106 Initial 21 | . . 21 Average 43 | . 46 43 Maximum Alert Level . | . . . Low Security (%) 100 | 100 100 100 Level 1 . | . . . Level 2 . | . . . Level 3 . | . . . Level 4 . | . . . Level 5 . | . . . High Security . | . . . Max Security . | . . . Squads Dispatched 4 | . 4 . Investigation 1 | . 1 . Extermination . | . . . Reinforcement 3 | . 3 . Assault . | . . . Garrison . | . . . Intercept . | . . . Searches Triggered . | . . . Construction Impeded . | . . . Haulers Reinforced . | . . . Active Scanning Responses . | . . . Cargo Convoy Interrupts . | . . . Stealth | -11 -10 -10 --------- Run | Jun Mat Min Distress Signals 1 | . 1 . Communications Jammed . | . . . Distress Signals . | . . . Times Spotted 48 | . 24 24 Peak Tracking Total 15 | . 4 15 Tactical Retreats 1 | . 1 . Traps | -11 -10 -10 ------- Run | Jun Mat Min Traps Triggered 5 | . 5 . Indirectly . | . . . Trap Hack Attempts . | . . . Triggered . | . . . Disarmed . | . . . Reprogrammed . | . . . Reused . | . . . Traps Extracted . | . . . Installed . | . . . Triggered . | . . . Machines | -11 -10 -10 ---------- Run | Jun Mat Min Machines Disabled 1 | . 1 . Max in Single Turn 1 | . 1 . Machines Repaired . | . . . Machines Sabotaged . | . . . Overloaded Fab Kills . | . . . Hacking | -11 -10 -10 --------- Run | Jun Mat Min Machines Accessed 5 | . 5 . Terminals 5 | . 5 . Fabricators . | . . . Repair Stations . | . . . Recycling Units . | . . . Scanalyzers . | . . . Garrison Access . | . . . Total Hacks 20 | . 20 . Successful 9 | . 9 . Failed 11 | . 11 . Catastrophic 1 | . 1 . Database Lockouts . | . . . Manual 10 | . 10 . Terminals 20 | . 20 . Fabricators . | . . . Repair Stations . | . . . Recycling Units . | . . . Scanalyzers . | . . . Garrison Access . | . . . Terminal Hacks 7 | . 7 . Robot Analysis 1 | . 1 . Terminal Index 1 | . 1 . Alert Level 1 | . 1 . Unreport Threat 1 | . 1 . Locate Traps 1 | . 1 . Transport Status 1 | . 1 . Hauler Manifests 1 | . 1 . Fabricator Hacks . | . . . Repair Station Hacks . | . . . Recycling Unit Hacks . | . . . Scanalyzer . | . . . Garrison Access Hacks . | . . . Unauthorized Hacks 2 | . 2 . Terminals 2 | . 2 . Botnet 2 | . 2 . Fabricators . | . . . Repair Stations . | . . . Recycling Units . | . . . Scanalyzers . | . . . Garrison Access . | . . . Data Cores Recovered . | . . . Used . | . . . Hacking Detections 5 | . 5 . Full Trace Events . | . . . Feedback Events . | . . . Feedback Blocked . | . . . Robot Schematics Acquired . | . . . Robots Built . | . . . Authchips . | . . . Time . | . . . Total Robot Build Rating . | . . . Part Schematics Acquired . | . . . Parts Built . | . . . Authchips . | . . . Time . | . . . Total Part Build Rating . | . . . Parts Repaired . | . . . Time . | . . . Parts Recycled . | . . . Recycled Matter . | . . . Retrieved Matter . | . . . Retrieved Components . | . . . Parts Scanalyzed . | . . . Part Schematics Acquired . | . . . Parts Damaged . | . . . Bothacking | -11 -10 -10 ------------ Run | Jun Mat Min Used RIF Installer . | . . . Robots Hacked . | . . . Non-combat . | . . . Combat . | . . . Robot Hacks Applied . | . . . Relay Couplers Released . | . . . Fabnet Peak Effective % . | . . . Robots Rewired . | . . . Allies Hacked . | . . . Hacks Repelled . | . . . Allies | -11 -10 -10 -------- Run | Jun Mat Min Total Allies . | . . . Largest Group . | . . . Highest-Rated Group . | . . . Highest-Rated Ally . | . . . Total Orders . | . . . Ally Attacks . | . . . Total Damage . | . . . Kills . | . . . Allies Corrupted . | . . . Allies Melted . | . . . Intel | -11 -10 -10 ------- Run | Jun Mat Min Robot Analysis Total 1 | . 1 . Derelict Logs Recovered . | . . . Drone Launches . | . . . Drone Recoveries . | . . . Exploration | -11 -10 -10 ------------- Run | Jun Mat Min Turns Passed 1933 | 81 1512 340 Spaces Moved 817 | 45 637 135 Core 2 | 2 . . Treads 815 | 43 637 135 Legs . | . . . Wheels . | . . . Hover . | . . . Flight . | . . . Fastest Speed 50 | 50 160 160 Average Speed 197 | 155 191 238 Slowest Speed 240 | 160 240 240 Overloaded Moves . | . . . Propulsion Burnouts . | . . . Robots Hopped . | . . . Cave-ins Triggered . | . . . Exploration Rate (%) 42 | 4 92 30 Regions Visited 2 Branch Regions 1 Pre-discovered Areas . | . . . Known Exits Taken . | . . . Unknown Exits Taken 2 | 1 1 . Scrap Searched . | . . . Spaces Dug . | . . . Terrain Destroyed . | . . . Melee . | . . . Projectile . | . . . AOE . | . . . Terrain Rammed . | . . . Walls Destroyed . | . . . Machines Disabled . | . . . Actions | -11 -10 -10 --------- Run | Jun Mat Min Total 997 | 53 796 148 Wait 42 | . 39 3 Move 815 | 44 636 135 Hop . | . . . Pick Up 30 | 1 27 2 Fast Attach 10 | 7 3 . Attach 3 | . 3 . Detach 2 | 1 1 . Swap 4 | . 3 1 Drop 13 | . 11 2 Fire 77 | . 73 4 Melee . | . . . Ram . | . . . Kick . | . . . Crush 1 | . . 1 Escape Stasis . | . . . Rewire . | . . . Trap . | . . . Miscellaneous . | . . . Route ------- -11/Junkyard -10/Materials (discovered 4 exits: [*Mat x2] / [*Min x2]) -10/Mines (discovered 1 exit: [*Mat]) History --------- Turn | Location | Event 29 | -11/Junkyard | Discovered new exit (range 15) 82 | -11/Junkyard | Entered Materials 283 | -10/Materials | Discovered new exit (range 13) 301 | -10/Materials | Build established: Mutant 477 | -10/Materials | Discovered new exit (range 8) 739 | -10/Materials | Core integrity fell below 50% 965 | -10/Materials | Discovered new exit (range 8) 1500 | -10/Materials | Discovered new exit (range 9) 1594 | -10/Materials | Entered Mines 1654 | -10/Mines | Discovered new exit (range 13) 1911 | -10/Mines | Assembled infested the area 1930 | -10/Mines | Core integrity fell below 20% 1934 | -10/Mines | Destroyed by D-53 Grenadier with Mini Grenade Launcher Last Messages --------------- 01878_ System corrupted: Energy discharge (-67). 01883_ K-01 Serf cleans the Matter Pump. 01911_ ALERT: Infestation in the mines, dispatching Demolisher response squad. 01914_ =RMNQK1,6KPTYQ2 VPQXX0DPLDEXO=KDE8 01922_ C-30 ARC bursts open, deploying its payload. 01922_ D-53 Grenadier unfolds itself. 01923_ K-01 Serf destroyed. 01925_ as-85665 destroyed. 01927_ The unstable cave ceiling collapses. 01929_ as-72706 destroyed. 01929_ as-28397 destroyed. 01929_ as-70852 destroyed. 01929_ as-87813 destroyed. 01929_ as-66632 destroyed. 01929_ Ion Engine destroyed. 01930_ as-58673 destroyed. 01932_ as-97253 destroyed. 01933_ G-47 Trooper destroyed. 01934_ Lgt. Treads destroyed. Map ----- +----------------------------------------------------+ | ?????????????????????????????????????????????? | | ?????????????????????????????????????????????? | | ?????????????????????????????????????????????? | | ?????????????????????????????????????????????? | | ?????????????????????????????????????????????? | | ?????????????????????????????????????????????? | | ?????????????????????????????????????????????? | | ?????????????????????????????????????????????? | | ?????????????????????????????????????????????? | | ?????????????????????????????????????????????? | | ?????????????????????????????????????????????? | | ?????????????????????????????????????????????? | | ?????????????????????????????????????????????? | | ?????????????????????????????????????????????? | | ?????????????????????????????????????????????? | | ?????????????????????????????????????????????? | | ?????????????????????????????????????????????? | | ?????????????????????????????????????????????? | | ?????????????????????????????????????????????? | | ?????????????????????????????????????? ?????? | | ?????????????????????????????????????? ?????? | | ???????????????###""###??##?????????? #?????? | | ???????????????# X #?# ##????????? ##????? | | ???????????????# ## #????????? ????? | | ??????????????## *=! #?????????? #?????? | | ?????? ##### %@= ##??#####?## ##????? | | ?????? aa aa % #?## ### #????? | | ?????????### # a ### #?????? | | ?????????????## a ## """ #??????# | | ??????????????## % = """ #??????# | | ???????????????## % %a%[ """ ##?????# | | ????????????????## a #### #?????# | | ?????????????????### #??##### #?????# | | ???????????????????###d####??????### ##?????# | | ?????????????????????# #???????????# ##??????# | | ?????????????????????# #???????????# #???????? | | ?????????????????????# #???????????# #???????? | | ?????????????????????# #???????????# #???????? | | ????????????????????? #???????????# #???????? | | ?????????????????????# #???????????# ######### | | ?????????????????????? #???????????# | | ??????????????????????%????????????#%######### | | ??????????????????????"??????????###%###?????? | | ?????????????????????? ??????????#% #?????? | | ?????????????????????? ??????????#*"""=#?????? | | ?????????????????????? ??????????# """ #?????? | | ?????????????????????? ??????????# """ #?????? | | ?????????????????????????????????# #?????? | | ?????????????????????????????????# #?????? | | ?????????????????????????????????#######?????? | +----------------------------------------------------+ Best States ------------- Heat Dissipation 25 Energy Generation 10 Energy Capacity 250 Matter Stores 300 Matter Capacity 300 Sight Range 16 Terrain Scan Density 10 Utility Shielding 33 Evasion (%) 40 Recoil Reduction 2 Item Schematics ----------------- None Robot Schematics ------------------ None Fabricated ------------ Nothing Alien Tech Used ----------------- None Achievements -------------- None Challenges ------------ None Game ------ Seed WeaponPulseAnalyzer Manual? 0 Play Time 00:11:05 Cumulative 350.4 hours Start 2023.03.27 @ 22:13:25 End 2023.03.27 @ 22:23:12 Sessions 1 Manual Loads 0 Difficulty Rogue Special Mode None Game No. 427 Rogue 427 Adventurer 0 Explorer 0 Win Type - Total 36 Types 26/0/7/3/0/0/0/0/0 Lore% 86 Gallery% 81 Achievement% 59 Wizard Run 0 Options --------- ASCII 0 Keyboard 1 Movement Numpad Keybinds 0 Fullscreen 1 Font 24/Smallcaps Map View 76x50 Tactical HUD 1 Map Filters NONE Filters NONE Steam 1 RUN: ee929a20-3d3c-4771-b739-7a26acf4a7c5